bitfinex/quotes_BTCUSD_20250727
["timestamp","ask_amount","ask_price","bid_price","bid_amount"]
[1753627253306,0.02973228,118450.0,118440.0,1.24094635]
[1753627253638,0.0212904,118450.0,118440.0,1.24938894]
[1753627254001,0.02973235,118450.0,118440.0,1.24094635]
[1753627254877,0.0212904,118450.0,118440.0,1.25804545]
[1753627255120,0.01284859,118450.0,118440.0,1.25804545]
[1753627256500,0.0212904,118450.0,118440.0,1.25804545]
[1753627256744,0.3902824,118460.0,118450.0,0.18573215]
[1753627256984,0.3568824,118460.0,118450.0,0.76496017]
[1753627257219,0.36532378,118460.0,118450.0,0.77340226]
[1753627257856,0.3568824,118460.0,118450.0,0.78184428]
[1753627258057,0.36532385,118460.0,118450.0,0.76496017]
[1753627258313,0.39438385,118460.0,118450.0,0.76496017]
[1753627259573,0.40282537,118460.0,118450.0,0.76496024]
[1753627260306,0.39438385,118460.0,118450.0,0.76496024]
[1753627260485,0.39438385,118460.0,118450.0,0.78184449]
[1753627260486,0.39438378,118460.0,118450.0,0.78184449]
[1753627260842,0.39438378,118460.0,118450.0,0.7734024]
[1753627261084,0.39438378,118460.0,118450.0,0.78184449]
[1753627261470,0.40282537,118460.0,118450.0,0.75651801]
[1753627261646,0.40484537,118460.0,118450.0,0.72750801]
[1753627261847,0.40802537,118460.0,118450.0,0.72750801]
[1753627262051,0.40802537,118460.0,118450.0,0.73595031]
[1753627262265,0.57685873,118460.0,118450.0,0.71906563]
[1753627262708,0.40802537,118460.0,118450.0,0.72750801]
[1753627262923,0.57685873,118460.0,118450.0,0.71695563]
[1753627266039,0.57685873,118460.0,118450.0,0.34928761]
[1753627266208,0.56841757,118460.0,118450.0,0.71695563]
[1753627268618,0.56841757,118460.0,118450.0,0.72539801]
[1753627268841,0.56841757,118460.0,118450.0,0.71695563]
[1753627269442,0.57685923,118460.0,118450.0,0.72539801]
[1753627270072,0.57685923,118460.0,118450.0,0.71695563]
[1753627271212,0.40802587,118460.0,118450.0,0.72539793]
[1753627271607,0.40802587,118460.0,118450.0,0.72539801]
[1753627271802,0.57685923,118460.0,118450.0,0.71695563]
[1753627272005,0.57685923,118460.0,118450.0,0.72539801]
[1753627272749,0.40802587,118460.0,118450.0,0.73595031]
[1753627273146,0.40802587,118460.0,118450.0,0.72750801]
[1753627273359,0.39958421,118460.0,118450.0,0.72750801]
[1753627274216,0.56841757,118460.0,118450.0,0.71906563]
[1753627275494,0.39958421,118460.0,118450.0,0.71906563]
[1753627275631,0.39958421,118460.0,118450.0,0.72750801]
[1753627275846,0.56841757,118460.0,118450.0,0.71906563]
[1753627279511,0.56841757,118460.0,118450.0,0.71695563]
[1753627280177,0.56841757,118460.0,118450.0,0.34928761]
[1753627280394,0.56841757,118460.0,118450.0,0.71695563]
[1753627280990,0.55997633,118460.0,118450.0,0.71695563]
[1753627282667,0.55997633,118460.0,118450.0,0.34928761]
[1753627282875,0.55997633,118460.0,118450.0,0.71695563]
[1753627283963,0.55153495,118460.0,118450.0,0.71695563]
[1753627284178,0.55153495,118460.0,118450.0,0.34928761]
[1753627284385,0.55153495,118460.0,118450.0,0.71695563]
[1753627288624,0.55153495,118460.0,118450.0,0.72539801]
[1753627288825,0.55153495,118460.0,118450.0,0.71695563]
[1753627289064,0.55153495,118460.0,118450.0,0.34928761]
[1753627289260,0.55153495,118460.0,118450.0,0.71695563]
[1753627289463,0.55153495,118460.0,118450.0,0.72539801]
[1753627289670,0.55997633,118460.0,118450.0,0.71695563]
[1753627289877,0.55997633,118460.0,118450.0,0.72539801]
[1753627290053,0.55997633,118460.0,118450.0,0.71695563]
[1753627291167,0.39114297,118460.0,118450.0,0.71894563]
[1753627291373,0.39114297,118460.0,118450.0,0.73583031]
[1753627291816,0.55997633,118460.0,118450.0,0.71894563]
[1753627292833,0.55997633,118460.0,118450.0,0.72738801]
[1753627293035,0.38796297,118460.0,118450.0,0.72738801]
[1753627293237,0.38796297,118460.0,118450.0,0.75616801]
[1753627293447,0.55679633,118460.0,118450.0,0.75616801]
[1753627294315,0.55679633,118460.0,118450.0,0.74772563]
[1753627294526,0.02532399,118460.0,118450.0,0.76461017]
[1753627294733,0.02532399,118460.0,118450.0,0.76461024]
[1753627295151,0.05237399,118460.0,118450.0,0.76461024]
[1753627295771,0.05237399,118460.0,118450.0,0.75616801]
[1753627295972,0.05237399,118460.0,118450.0,0.76461031]
[1753627296145,0.05237399,118460.0,118450.0,0.76453031]
[1753627296782,0.06081565,118460.0,118450.0,0.76453031]
[1753627296958,0.05237399,118460.0,118450.0,0.76453031]
[1753627297117,0.06081558,118460.0,118450.0,0.76453031]
[1753627297319,0.05237399,118460.0,118450.0,0.77297254]
[1753627298730,0.05237399,118460.0,118450.0,0.76453031]
[1753627299020,0.05237399,118460.0,118450.0,0.77297254]
[1753627299633,0.06081565,118460.0,118450.0,0.76453031]
[1753627299819,0.06081565,118460.0,118450.0,0.75608801]
[1753627300014,0.06081565,118460.0,118450.0,0.76453031]
[1753627300396,0.05237399,118460.0,118450.0,0.77297254]
[1753627300604,0.05237399,118460.0,118450.0,0.7814147]
[1753627300811,0.05237399,118460.0,118450.0,0.77297254]
[1753627301016,0.02532392,118460.0,118450.0,0.7846447]
[1753627301217,0.02532392,118460.0,118450.0,0.77620254]
[1753627301670,0.02532392,118460.0,118450.0,0.7814147]
[1753627301872,0.06081544,118460.0,118450.0,0.77297254]
[1753627304359,0.06081544,118460.0,118450.0,0.7814147]
[1753627304773,0.05237392,118460.0,118450.0,0.7814147]
[1753627305206,0.03549131,118460.0,118450.0,0.78141456]
[1753627305423,0.0168824,118460.0,118450.0,0.78141456]
[1753627305845,0.01688225,118460.0,118450.0,0.65325463]
[1753627306202,0.01688225,118460.0,118450.0,0.86912157]
[1753627306415,0.38223926,118470.0,118460.0,0.22817488]
[1753627306624,0.39068014,118470.0,118460.0,0.7259929]
[1753627306811,0.39068014,118470.0,118460.0,0.75477297]
[1753627307033,0.55949925,118470.0,118460.0,0.74633138]
[1753627307241,0.58654925,118470.0,118460.0,0.74633138]
[1753627307843,0.58861925,118470.0,118460.0,0.74633138]
[1753627308053,0.58317873,118470.0,118460.0,0.71755138]
[1753627308264,0.58317873,118470.0,118460.0,0.71556138]
[1753627313577,0.39685636,118480.0,118470.0,0.22241911]
[1753627313800,0.03153686,118480.0,118470.0,1.1047467]
[1753627314044,0.01292653,118480.0,118470.0,1.14519715]
[1753627314258,0.35292653,118480.0,118470.0,1.14519722]
[1753627314459,0.36136634,118480.0,118470.0,1.15363767]
[1753627314579,0.34448686,118480.0,118470.0,1.15363767]
[1753627314789,0.34448686,118480.0,118470.0,1.15040767]
[1753627314987,0.35292646,118480.0,118470.0,1.15040767]
[1753627315604,0.34448686,118480.0,118470.0,1.15040767]
[1753627315940,0.35292653,118480.0,118470.0,1.15040767]
[1753627316177,0.34448686,118480.0,118470.0,1.15040767]
[1753627316597,0.34448686,118480.0,118470.0,1.23488497]
[1753627317178,0.34448686,118480.0,118470.0,1.15040767]
[1753627317395,0.35292646,118480.0,118470.0,1.15040767]
[1753627317723,0.34448686,118480.0,118470.0,1.15356767]
[1753627318622,0.34008,118480.0,118470.0,1.15356767]
[1753627319274,8e-05,118480.0,118470.0,1.23804497]
[1753627319458,8e-05,118480.0,118470.0,1.27730664]
[1753627319713,8e-05,118480.0,118470.0,1.64497466]
[1753627319926,8e-05,118480.0,118470.0,1.27730664]
[1753627320144,8e-05,118480.0,118470.0,1.66242368]
[1753627320371,8e-05,118480.0,118470.0,1.29475566]
[1753627322136,8e-05,118480.0,118470.0,1.29875566]
[1753627322561,8e-05,118480.0,118470.0,1.29475566]
[1753627322771,8e-05,118480.0,118470.0,1.29975566]
[1753627322988,8e-05,118480.0,118470.0,1.30375566]
[1753627324989,8e-05,118480.0,118470.0,1.32859792]
[1753627325863,8e-05,118480.0,118470.0,0.59326188]
[1753627326077,8e-05,118480.0,118470.0,1.32859792]
[1753627330099,0.03443,118480.0,118470.0,0.9289499]
[1753627331014,0.03443,118480.0,118470.0,0.9571399]
[1753627331629,0.03118,118480.0,118470.0,0.9571399]
[1753627332082,0.02906,118480.0,118470.0,0.9571399]
[1753627332288,0.02906,118480.0,118470.0,0.58947188]
[1753627332506,8e-05,118480.0,118470.0,1.32796792]
[1753627334844,8e-05,118480.0,118470.0,1.24551278]
[1753627336542,8e-05,118480.0,118470.0,0.91907233]
[1753627336991,8e-05,118480.0,118470.0,0.90162331]
[1753627337219,8e-05,118480.0,118470.0,1.22806376]
[1753627338527,1e-08,118480.0,118470.0,2.39777978]
[1753627340383,1e-08,118480.0,118470.0,2.44839978]
[1753627340586,1e-08,118480.0,118470.0,3.25993478]
[1753627341046,1e-08,118480.0,118470.0,2.18293278]
[1753627341251,1e-08,118480.0,118470.0,1.64213478]
[1753627341456,1e-08,118480.0,118470.0,1.80606678]
[1753627341669,1e-08,118480.0,118470.0,1.80856678]
[1753627341877,1e-08,118480.0,118470.0,1.78476678]
[1753627342305,1e-08,118480.0,118470.0,1.65668678]
[1753627342503,1e-08,118480.0,118470.0,1.78476678]
[1753627342926,1e-08,118480.0,118470.0,1.63863278]
[1753627343351,1e-08,118480.0,118470.0,2.13633678]
[1753627349530,1e-08,118480.0,118470.0,3.35596278]
[1753627350688,1e-08,118480.0,118470.0,3.10170278]
[1753627352938,1e-08,118480.0,118470.0,2.97321878]
[1753627353359,1e-08,118480.0,118470.0,2.93975278]
[1753627353985,1e-08,118480.0,118470.0,2.88445278]
[1753627354168,1e-08,118480.0,118470.0,2.31704478]
[1753627356873,1e-08,118480.0,118470.0,2.39862654]
[1753627362257,1e-08,118480.0,118470.0,1.72021454]
[1753627362413,1e-08,118480.0,118470.0,2.71553054]
[1753627362853,1e-08,118480.0,118470.0,2.68888154]
[1753627363280,1e-08,118480.0,118470.0,2.39952154]
[1753627364755,1e-08,118480.0,118470.0,2.35939954]
[1753627364978,1e-08,118480.0,118470.0,2.31930354]
[1753627365159,1e-08,118480.0,118470.0,2.18039154]
[1753627365301,1e-08,118480.0,118470.0,2.18361154]
[1753627365516,1e-08,118480.0,118470.0,2.15092154]
[1753627365885,1e-08,118480.0,118470.0,1.96552354]
[1753627366072,0.03123001,118480.0,118470.0,1.68683454]
[1753627371432,0.03123001,118480.0,118470.0,1.68647454]
[1753627371653,0.02810001,118480.0,118470.0,1.71354454]
[1753627380445,0.02606001,118480.0,118470.0,1.71354454]
[1753627381651,1e-08,118480.0,118470.0,1.71651454]
[1753627381923,1e-08,118480.0,118470.0,3.12503187]
[1753627382562,1e-08,118480.0,118470.0,3.12003187]
[1753627383018,1e-08,118480.0,118470.0,3.17953187]
[1753627383865,1e-08,118480.0,118470.0,3.17253187]
[1753627384087,1e-08,118480.0,118470.0,3.18053187]
[1753627384701,1e-08,118480.0,118470.0,3.17653187]
[1753627384911,1e-08,118480.0,118470.0,2.72748342]
[1753627385159,1e-08,118480.0,118470.0,2.73148342]
[1753627385576,1e-08,118480.0,118470.0,2.72748342]
[1753627385981,1e-08,118480.0,118470.0,2.73048342]
[1753627387236,1e-08,118480.0,118470.0,2.70564116]
[1753627392583,1e-08,118480.0,118470.0,1.66435516]
[1753627392841,1e-08,118480.0,118470.0,6.66435516]
[1753627393050,1e-08,118480.0,118470.0,6.69019269]
[1753627394901,1e-08,118480.0,118470.0,6.56215269]
[1753627395115,1e-08,118480.0,118470.0,6.22364069]
[1753627398937,1e-08,118480.0,118470.0,6.69055269]
[1753627399757,1e-08,118480.0,118470.0,6.61696669]
[1753627399970,1e-08,118480.0,118470.0,6.69055269]
[1753627405329,0.00305,118500.0,118490.0,0.35744902]
[1753627405493,0.00521844,118500.0,118490.0,2.37479706]
[1753627405721,0.00521844,118500.0,118490.0,2.40011478]
[1753627406528,0.00521844,118500.0,118490.0,1.15697878]
[1753627406716,0.00521844,118500.0,118490.0,2.40357978]
[1753627406935,0.00521844,118500.0,118490.0,2.81150809]
[1753627407336,0.03185844,118500.0,118490.0,2.81150809]
[1753627407630,0.03185844,118500.0,118490.0,2.76139909]
[1753627408055,0.03185844,118500.0,118490.0,2.72508409]
[1753627409756,0.03185844,118500.0,118490.0,2.72758409]
[1753627411061,0.03185844,118500.0,118490.0,2.71686809]
[1753627412688,0.03185844,118500.0,118490.0,2.74304809]
[1753627413124,0.03185844,118500.0,118490.0,2.79344809]
[1753627417492,0.03185844,118500.0,118490.0,2.58862809]
[1753627417703,0.05835844,118500.0,118490.0,1.57028709]
[1753627418328,0.03185844,118500.0,118490.0,1.57028709]
[1753627418969,0.03185844,118500.0,118490.0,1.42471807]
[1753627419184,0.08345844,118500.0,118490.0,1.18567253]
[1753627419822,0.08345844,118500.0,118490.0,1.55279807]
[1753627421707,0.08345844,118500.0,118490.0,1.55029807]
[1753627422065,0.05835844,118500.0,118490.0,1.55029807]
[1753627425471,0.03185844,118500.0,118490.0,1.60096807]
[1753627425733,0.03185844,118500.0,118490.0,1.55029807]
[1753627428822,0.03185844,118500.0,118490.0,1.57647807]
[1753627431850,0.00521844,118500.0,118490.0,1.57647807]
[1753627432964,0.00521844,118500.0,118490.0,1.57853807]
[1753627433910,0.03185844,118500.0,118490.0,1.55029807]
[1753627434750,0.03185844,118500.0,118490.0,1.57555807]
[1753627438840,0.03185844,118500.0,118490.0,1.59300716]
[1753627439095,0.03185844,118500.0,118490.0,1.6014464]
[1753627439318,0.03185844,118500.0,118490.0,1.59300737]
[1753627439502,0.03185844,118500.0,118490.0,1.60144647]
[1753627439732,0.03185844,118500.0,118490.0,1.60144654]
[1753627439958,0.09903529,118500.0,118490.0,0.49385866]
[1753627440169,0.28468893,118500.0,118490.0,0.5209842]
[1753627440380,0.28468893,118500.0,118490.0,0.6491842]
[1753627440628,0.12435137,118500.0,118490.0,0.5209842]
[1753627440814,0.28468942,118500.0,118490.0,0.5209842]
[1753627441038,0.26781229,118500.0,118490.0,0.5209842]
[1753627441259,0.26781229,118500.0,118490.0,0.6491842]
[1753627442292,0.26781229,118500.0,118490.0,0.5209842]
[1753627442519,0.26781229,118500.0,118490.0,0.6491442]
[1753627442932,0.26781229,118500.0,118490.0,0.5209842]
[1753627443136,0.26781229,118500.0,118490.0,0.28205866]
[1753627443345,0.26781229,118500.0,118490.0,0.15385866]
[1753627443571,0.26781229,118500.0,118490.0,0.28205866]
[1753627443775,0.26781229,118500.0,118490.0,0.2186773]
[1753627444232,0.63493783,118500.0,118490.0,0.0904773]
[1753627444492,1.00206337,118500.0,118490.0,0.006]
[1753627445241,1.35055042,118500.0,118490.0,1e-08]
[1753627445486,0.18573172,118450.0,118440.0,0.40100682]
[1753627445737,0.20188215,118450.0,118440.0,0.54470142]
[1753627445946,0.23055215,118450.0,118440.0,0.67294142]
[1753627446624,0.23055215,118450.0,118440.0,0.17757588]
[1753627446842,0.23055215,118450.0,118440.0,0.30586424]
[1753627448351,0.23055215,118450.0,118440.0,0.33110155]
[1753627449076,0.55733077,118450.0,118440.0,0.12832836]
[1753627449316,0.23055215,118450.0,118440.0,0.12832836]
[1753627450022,0.23055215,118450.0,118440.0,4.836e-05]
[1753627451867,0.35891215,118450.0,118440.0,4.836e-05]
[1753627452738,0.68569077,118450.0,118440.0,4.836e-05]
[1753627454460,0.68769077,118450.0,118440.0,4.836e-05]
[1753627455114,0.68869077,118450.0,118440.0,4.836e-05]
[1753627455546,0.68769077,118450.0,118440.0,4.836e-05]
[1753627457095,0.36091215,118450.0,118440.0,4.836e-05]
[1753627457315,0.68769077,118450.0,118440.0,4.836e-05]
[1753627459683,1.02769077,118450.0,118440.0,4.836e-05]
[1753627460120,1.03209964,118450.0,118440.0,4.836e-05]
[1753627462957,1.03797627,118450.0,118440.0,4.836e-05]
[1753627466286,0.71119765,118450.0,118440.0,4.836e-05]
[1753627466554,0.72687366,118450.0,118440.0,4.836e-05]
[1753627466768,1.05365228,118450.0,118440.0,4.836e-05]
[1753627467436,1.06149246,118450.0,118440.0,4.836e-05]
[1753627468096,1.06149682,118450.0,118440.0,4.836e-05]
[1753627468964,1.10254733,118450.0,118440.0,4.836e-05]
[1753627470973,1.10256241,118450.0,118440.0,4.836e-05]
[1753627472885,1.06168073,118450.0,118440.0,4.836e-05]
[1753627473308,1.07980286,118450.0,118440.0,4.836e-05]
[1753627473905,1.07982533,118450.0,118440.0,4.836e-05]
[1753627475216,1.16430263,118450.0,118440.0,4.836e-05]
[1753627475429,1.18686286,118450.0,118440.0,4.836e-05]
[1753627475861,1.23470707,118450.0,118440.0,4.836e-05]
[1753627476068,1.26007507,118450.0,118440.0,4.836e-05]
[1753627476276,1.23551484,118450.0,118440.0,4.836e-05]
[1753627476459,1.23751484,118450.0,118440.0,4.836e-05]
[1753627476923,1.28310763,118450.0,118440.0,4.836e-05]
[1753627477139,1.28410763,118450.0,118440.0,4.836e-05]
[1753627477348,1.25371244,118450.0,118440.0,4.836e-05]
[1753627478259,0.52576322,118430.0,118420.0,0.02636]
[1753627478469,0.70249283,118430.0,118420.0,0.02636]
[1753627478684,1.05343904,118430.0,118420.0,0.02636]
[1753627478903,1.05662904,118430.0,118420.0,0.02636]
[1753627479324,1.08235904,118430.0,118420.0,0.02636]
[1753627479544,0.75541159,118430.0,118420.0,0.02636]
[1753627479751,1.08235904,118430.0,118420.0,0.02736]
[1753627480184,1.13425904,118430.0,118420.0,0.0012]
[1753627480394,1.13866791,118430.0,118420.0,0.0012]
[1753627480607,1.13871144,118430.0,118420.0,0.0012]
[1753627481243,1.25453742,118430.0,118420.0,0.0012]
[1753627481490,1.23186963,118430.0,118420.0,0.0002]
[1753627481705,1.25463977,118430.0,118420.0,0.0002]
[1753627481926,1.27746242,118430.0,118420.0,0.0002]
[1753627482168,1.29591144,118430.0,118420.0,0.0002]
[1753627482373,1.29093476,118430.0,118420.0,0.0002]
[1753627483011,1.28993476,118430.0,118420.0,0.0002]
[1753627483227,1.32027592,118430.0,118420.0,0.0002]
[1753627483441,1.32227592,118430.0,118420.0,0.0002]
[1753627483676,0.84959945,118430.0,118420.0,0.0002]
[1753627483908,0.74913125,118430.0,118420.0,0.02636]
[1753627484125,1.04573754,118430.0,118420.0,0.02636]
[1753627484348,1.17401754,118430.0,118420.0,0.02636]
[1753627484586,1.19874754,118430.0,118420.0,0.02636]
[1753627484883,1.20274754,118430.0,118420.0,0.02636]
[1753627485180,1.22964754,118430.0,118420.0,0.0002]
[1753627485387,0.90270009,118430.0,118420.0,0.0002]
[1753627485597,1.22964754,118430.0,118420.0,0.0002]
[1753627485812,1.2599887,118430.0,118420.0,0.0002]
[1753627486507,0.93304125,118430.0,118420.0,0.0002]
[1753627486727,1.23723411,118430.0,118420.0,0.0002]
[1753627487189,1.2599776,118430.0,118420.0,0.0002]
[1753627488072,1.2330776,118430.0,118420.0,0.0002]
[1753627490270,1.2330776,118430.0,118420.0,0.41184745]
[1753627490271,0.42523085,118430.0,118420.0,0.41184745]
[1753627490525,0.71667384,118430.0,118420.0,0.41184745]
[1753627490753,0.73488969,118430.0,118420.0,0.0849]
[1753627490996,0.60260969,118430.0,118420.0,0.0849]
[1753627491217,0.7081462,118430.0,118420.0,0.0849]
[1753627491432,0.69245075,118430.0,118420.0,0.0849]
[1753627491646,0.70824698,118430.0,118420.0,0.0849]
[1753627491915,0.71024698,118430.0,118420.0,0.0849]
[1753627492131,0.70824698,118430.0,118420.0,0.08167]
[1753627492550,0.71356698,118430.0,118420.0,0.08167]
[1753627492807,0.71456698,118430.0,118420.0,0.08167]
[1753627495459,0.23124317,118430.0,118420.0,0.58903235]
[1753627495843,0.36792697,118430.0,118420.0,0.59747679]
[1753627495844,0.35948317,118430.0,118420.0,0.59747679]
[1753627496073,0.36792697,118430.0,118420.0,0.59747679]
[1753627496334,0.36692697,118430.0,118420.0,0.58903235]
[1753627496576,0.36692697,118430.0,118420.0,0.58058784]
[1753627497089,0.36692697,118430.0,118420.0,0.58903235]
[1753627497247,0.23668697,118430.0,118420.0,0.58903235]
[1753627497471,0.03062861,118430.0,118420.0,0.77718943]
[1753627497687,0.16731191,118430.0,118420.0,0.77718943]
[1753627498117,0.18420454,118430.0,118420.0,0.7771895]
[1753627498331,0.15205287,118430.0,118420.0,0.78563352]
[1753627498546,0.0153695,118430.0,118420.0,0.78563352]
[1753627498780,0.1426095,118430.0,118420.0,0.78563352]
[1753627498990,0.1535704,118430.0,118420.0,0.76974541]
[1753627499200,0.33089032,118430.0,118420.0,0.74441223]
[1753627499424,0.34363793,118430.0,118420.0,0.33911769]
[1753627500125,0.32926807,118430.0,118420.0,0.33911769]
[1753627500351,0.32927,118430.0,118420.0,0.33911769]
[1753627501462,0.67961409,118430.0,118420.0,0.0279]
[1753627501665,0.6875177,118430.0,118420.0,0.0012]
[1753627502255,1.0275177,118430.0,118420.0,0.0012]
[1753627502445,1.05291836,118430.0,118420.0,0.0012]
[1753627502796,1.05884671,118430.0,118420.0,0.0012]
[1753627503219,1.05291836,118430.0,118420.0,0.0012]
[1753627503622,1.05884738,118430.0,118420.0,0.0012]
[1753627503898,1.05094311,118430.0,118420.0,0.0012]
[1753627504102,1.05094311,118430.0,118420.0,0.0002]
[1753627504103,1.03344862,118430.0,118420.0,0.0002]
[1753627504314,0.70057215,118430.0,118420.0,0.0002]
[1753627504512,0.70157215,118430.0,118420.0,0.0002]
[1753627504761,0.6936715,118430.0,118420.0,0.0002]
[1753627504957,0.6926715,118430.0,118420.0,0.0002]
[1753627505372,0.67885992,118430.0,118420.0,0.0002]
[1753627506001,0.67985992,118430.0,118420.0,0.0002]
[1753627513076,0.68426879,118430.0,118420.0,0.0002]
[1753627519686,1.01121624,118430.0,118420.0,0.0002]
[1753627521665,0.68426879,118430.0,118420.0,0.0002]
[1753627522754,1.01121624,118430.0,118420.0,0.0002]
[1753627523379,1.01021624,118430.0,118420.0,0.0002]
[1753627524218,1.01021624,118430.0,118420.0,0.0247]
[1753627524668,0.68326879,118430.0,118420.0,0.049]
[1753627524895,0.70863679,118430.0,118420.0,0.049]
[1753627535198,0.70863679,118430.0,118420.0,0.0002]
[1753627535417,1.03558424,118430.0,118420.0,0.0002]
[1753627536374,0.70863679,118430.0,118420.0,0.0002]
[1753627538941,0.73834779,118430.0,118420.0,0.0002]
[1753627539155,0.73240546,118430.0,118420.0,0.0002]
[1753627539394,1.05935291,118430.0,118420.0,0.0002]
[1753627539838,0.73240546,118430.0,118420.0,0.0002]
[1753627540066,1.05935024,118430.0,118420.0,0.0002]
[1753627540297,1.05142713,118430.0,118420.0,0.0002]
[1753627541614,1.21117397,118430.0,118420.0,0.0002]
[1753627541886,1.21711384,118430.0,118420.0,0.0002]
[1753627542380,0.21928378,118420.0,118410.0,0.0002]
[1753627542601,0.81614181,118420.0,118410.0,0.0002]
[1753627542848,0.84272181,118420.0,118410.0,0.0002]
[1753627543064,0.86809581,118420.0,118410.0,0.0002]
[1753627543295,1.20809092,118420.0,118410.0,0.0002]
[1753627543959,1.21009092,118420.0,118410.0,0.0002]
[1753627544895,1.26009092,118420.0,118410.0,0.0002]
[1753627545144,1.26309092,118420.0,118410.0,0.0002]
[1753627547236,0.93614347,118420.0,118410.0,0.0002]
[1753627547457,1.26309092,118420.0,118410.0,0.0002]
[1753627550585,0.93614347,118420.0,118410.0,0.0002]
[1753627550861,1.26309092,118420.0,118410.0,0.0002]
[1753627551330,1.26304609,118420.0,118410.0,0.0002]
[1753627552004,0.93609864,118420.0,118410.0,0.0002]
[1753627552232,1.26304609,118420.0,118410.0,0.0002]
[1753627552706,0.88704621,118410.0,118400.0,0.0002]
[1753627552935,0.82908606,118410.0,118400.0,0.0002]
[1753627553211,1.15603351,118410.0,118400.0,0.0002]
[1753627553488,0.52582599,118390.0,118380.0,0.07672]
[1753627553738,0.65690599,118390.0,118380.0,0.0787]
[1753627553942,0.74138329,118390.0,118380.0,0.0787]
[1753627554165,0.76708229,118390.0,118380.0,0.08231488]
[1753627554864,0.76708229,118390.0,118380.0,0.07918488]
[1753627555576,1.09941974,118390.0,118380.0,0.07918488]
[1753627555842,0.77247229,118390.0,118380.0,0.07918488]
[1753627556061,0.77247229,118390.0,118380.0,0.08118488]
[1753627556284,1.09941974,118390.0,118380.0,0.08018488]
[1753627556509,0.79640229,118390.0,118380.0,0.07820488]
[1753627556980,1.12334974,118390.0,118380.0,0.05358488]
[1753627557213,1.12334974,118390.0,118380.0,0.02748488]
[1753627557436,1.14079876,118390.0,118380.0,0.00148488]
[1753627557672,1.14079876,118390.0,118380.0,0.00048488]
[1753627557893,1.14079876,118390.0,118380.0,0.00148488]
[1753627558121,1.14079876,118390.0,118380.0,0.00048488]
[1753627559064,0.81585131,118390.0,118380.0,0.00048488]
[1753627559290,1.14279876,118390.0,118380.0,0.00048488]
[1753627559741,0.83163339,118390.0,118380.0,0.00048488]
[1753627559955,1.15858084,118390.0,118380.0,0.00048488]
[1753627560415,1.20878084,118390.0,118380.0,1e-08]
[1753627560641,1.25878084,118390.0,118380.0,1e-08]
[1753627560869,1.70778084,118390.0,118380.0,1e-08]
[1753627561090,1.38083339,118390.0,118380.0,1e-08]
[1753627561321,1.3563346,118390.0,118380.0,1e-08]
[1753627561618,1.3306346,118390.0,118380.0,1e-08]
[1753627561847,1.65758205,118390.0,118380.0,1e-08]
[1753627563443,1.3306346,118390.0,118380.0,1e-08]
[1753627563900,0.22898828,118390.0,118380.0,0.40793746]
[1753627564130,0.15365238,118390.0,118380.0,0.63291107]
[1753627564355,0.33103257,118390.0,118380.0,0.45551625]
[1753627564580,0.32258627,118390.0,118380.0,0.08099001]
[1753627564824,0.32162627,118390.0,118380.0,0.08099001]
[1753627565034,0.51377372,118390.0,118380.0,0.08099001]
[1753627565296,0.32062627,118390.0,118380.0,0.08099001]
[1753627565495,0.32062627,118390.0,118380.0,0.08199001]
[1753627566035,0.32062627,118390.0,118380.0,0.08299001]
[1753627566473,0.32062627,118390.0,118380.0,0.07982001]
[1753627566474,0.66062627,118390.0,118380.0,0.07982001]
[1753627566719,0.74510357,118390.0,118380.0,0.07982001]
[1753627566935,0.75049357,118390.0,118380.0,0.07982001]
[1753627567158,1.18460547,118390.0,118380.0,0.00200001]
[1753627567605,1.19249978,118390.0,118380.0,0.00200001]
[1753627568267,0.87147459,118390.0,118380.0,0.00200001]
[1753627568530,0.87147459,118390.0,118380.0,0.00100001]
[1753627568759,1.20283091,118390.0,118380.0,0.00100001]
[1753627568993,1.20283091,118390.0,118380.0,1e-08]
[1753627569229,0.87589355,118390.0,118380.0,1e-08]
[1753627569458,0.87689355,118390.0,118380.0,1e-08]
[1753627569716,1.203841,118390.0,118380.0,1e-08]
[1753627569968,0.87789355,118390.0,118380.0,1e-08]
[1753627570204,1.204841,118390.0,118380.0,1e-08]
[1753627570434,0.87789355,118390.0,118380.0,1e-08]
[1753627570655,1.204841,118390.0,118380.0,1e-08]
[1753627571094,0.87789355,118390.0,118380.0,1e-08]
[1753627571583,1.204841,118390.0,118380.0,1e-08]
[1753627572522,1.653841,118390.0,118380.0,1e-08]
[1753627572750,1.32689355,118390.0,118380.0,1e-08]
[1753627572979,1.65384982,118390.0,118380.0,1e-08]
[1753627573204,1.32690237,118390.0,118380.0,1e-08]
[1753627573433,1.65384982,118390.0,118380.0,1e-08]
[1753627574622,1.32690237,118390.0,118380.0,1e-08]
[1753627574808,1.65384982,118390.0,118380.0,1e-08]
[1753627575055,1.32690237,118390.0,118380.0,1e-08]
[1753627575304,1.65384982,118390.0,118380.0,1e-08]
[1753627576217,1.6538606,118390.0,118380.0,1e-08]
[1753627576441,1.31111227,118390.0,118380.0,1e-08]
[1753627576668,1.65386636,118390.0,118380.0,1e-08]
[1753627576898,1.31111227,118390.0,118380.0,1e-08]
[1753627577119,1.63805972,118390.0,118380.0,1e-08]
[1753627577372,1.65386699,118390.0,118380.0,1e-08]
[1753627577588,1.39752983,118390.0,118380.0,1e-08]
[1753627577810,1.72447728,118390.0,118380.0,1e-08]
[1753627578253,1.39752983,118390.0,118380.0,1e-08]
[1753627578463,1.72447728,118390.0,118380.0,1e-08]
[1753627578710,1.69887728,118390.0,118380.0,1e-08]
[1753627579370,1.37192983,118390.0,118380.0,1e-08]
[1753627579597,1.67207728,118390.0,118380.0,1e-08]
[1753627579815,1.34512983,118390.0,118380.0,1e-08]
[1753627580478,1.67207728,118390.0,118380.0,1e-08]
[1753627580951,1.21032983,118390.0,118380.0,1e-08]
[1753627581142,1.34652983,118390.0,118380.0,1e-08]
[1753627581417,1.25127728,118390.0,118380.0,1e-08]
[1753627581852,0.92432983,118390.0,118380.0,1e-08]
[1753627582075,1.20626699,118390.0,118380.0,1e-08]
[1753627582289,1.22448356,118390.0,118380.0,1e-08]
[1753627582502,1.20626699,118390.0,118380.0,1e-08]
[1753627582930,1.22460605,118390.0,118380.0,1e-08]
[1753627583152,1.22460604,118390.0,118380.0,1e-08]
[1753627583386,0.89765859,118390.0,118380.0,1e-08]
[1753627583607,1.22460604,118390.0,118380.0,1e-08]
[1753627583839,1.2246146,118390.0,118380.0,1e-08]
[1753627584720,0.76134715,118390.0,118380.0,1e-08]
[1753627584946,0.89360915,118390.0,118380.0,0.07463001]
[1753627585224,0.7391901,118390.0,118380.0,0.07463001]
[1753627585443,0.80794108,118390.0,118380.0,0.07781001]
[1753627585901,0.80794416,118390.0,118380.0,0.07781001]
[1753627586126,1.25022597,118390.0,118380.0,1e-08]
[1753627586344,1.27702597,118390.0,118380.0,1e-08]
[1753627586557,1.30142597,118390.0,118380.0,1e-08]